Cogmind - Beta 17 --- EXPLORER MODE // 2026.08.16 @ 16:25:21 Player: M1-K3 Result: Self-destructed Performance ------------- Evolutions (4) 2000 Regions Visited (12) 2400 Robots Destroyed (23) 115 Value Destroyed (714) 714 Prototype IDs (23) 460 Alien Tech Used (0) 0 Bonus (685) 685 TOTAL SCORE: 6374 Bonus ------- Follower Combat Kills 430 Aligned with FarCom 300 Friendly Fire -45 Cogmind --------- Core Integrity 840/850 Matter 258/300 Energy 290/290 System Corruption 0% Temperature Cool (0) Movement Flying (184) Ox2 Location -6/Factory Parts ------- > --- POWER (2) -------- Nuclear Core Micro Nuclear Core > --- PROPULSION (6) --- Cesium-ion Thruster Xenon Bombardment Thruster Xenon Bombardment Thruster Xenon Bombardment Thruster Xenon Bombardment Thruster Xenon Bombardment Thruster > --- UTILITY (5) ------ Improved Heat Sink High-capacity Storage Unit Signal Interpreter Transmission Jammer Improved Light Armor Plating > --- WEAPON (3) ------- Heavy Laser Phase Gun Heavy Battle Rifle > --- INVENTORY (20) --- Potential Leg Potential Leg Cesium-ion Thruster Improved Cooling System Large Battery (200) Large Matter Pod (150) Large Matter Pod (150) Experimental Sensor Array Advanced Terrain Scan Processor Advanced ECM Suite Hardened Medium Armor Plating Improved Light Armor Plating Backup Laser III Backup Laser III Backup Laser III Beamcaster Battle Rifle Improved Grenade Launcher Mining Laser Peak State ------------ > --- POWER ------------ Nuclear Core Micro Nuclear Core > --- PROPULSION ------- Cesium-ion Thruster Xenon Bombardment Thruster Xenon Bombardment Thruster Xenon Bombardment Thruster Xenon Bombardment Thruster Xenon Bombardment Thruster > --- UTILITY ---------- Improved Heat Sink High-capacity Storage Unit Signal Interpreter Transmission Jammer Improved Light Armor Plating > --- WEAPON ----------- Heavy Laser Phase Gun Heavy Battle Rifle > --- INVENTORY -------- Potential Leg Potential Leg Improved Cooling System Large Battery Large Matter Pod Large Matter Pod Experimental Sensor Array Advanced Terrain Scan Processor Advanced ECM Suite Hardened Medium Armor Plating Improved Light Armor Plating Backup Laser III Backup Laser III Backup Laser III Beamcaster Battle Rifle Improved Grenade Launcher Mining Laser [Rating: 64] Favorites ----------- Power Micro Nuclear Core Engine Improved Ion Engine Power Core Micro Nuclear Core Propulsion Xenon Bombardment Thruster Treads Spiked Treads Leg Aluminum Leg Flight Unit Xenon Bombardment Thruster Utility Signal Interpreter Device Improved Heat Sink Storage High-capacity Storage Unit Processor Signal Interpreter Protection Improved Light Armor Plating Weapon Heavy Battle Rifle Energy Gun Phase Gun Ballistic Gun Heavy Battle Rifle Slashing Weapon Longsword +1 Piercing Weapon Spear Build | -11 -10 -9 -9 -9 -8 -8 -7 -7 -7 -7 -7 -6 ------- Run | Yrd Mat Mat Min Exi Min Mat Fac Was Fac Low Low Fac Slots Evolved 9 | . 1 2 . . . 2 2 . . . . 2 Power 1 | . . . . . . . 1 . . . . . Propulsion 4 | . . 1 . . . 1 1 . . . . 1 Utility 3 | . . 1 . . . 1 . . . . . 1 Weapon 1 | . 1 . . . . . . . . . . . Parts Attached 50 | . 4 5 5 6 . 10 2 8 4 3 . 3 Power 5 | . . 1 1 . . 1 1 . 1 . . . Engine 3 | . . 1 1 . . . 1 . . . . . Core 2 | . . . . . . 1 . . 1 . . . Reactor . | . . . . . . . . . . . . . Propulsion 17 | . . 1 3 2 . 5 1 . 1 2 . 2 Treads 1 | . . . . . . . . . . 1 . . Leg 7 | . . 1 3 2 . 1 . . . . . . Wheel . | . . . . . . . . . . . . . Hover . | . . . . . . . . . . . . . Flight 9 | . . . . . . 4 1 . 1 1 . 2 Utility 12 | . 2 2 . 3 . 3 . . 1 . . 1 Device 4 | . 1 . . 1 . 1 . . . . . 1 Storage 2 | . . . . 2 . . . . . . . . Processor 2 | . . 2 . . . . . . . . . . Hackware . | . . . . . . . . . . . . . Protection 4 | . 1 . . . . 2 . . 1 . . . Artifact . | . . . . . . . . . . . . . Weapon 16 | . 2 1 1 1 . 1 . 8 1 1 . . Energy Gun 5 | . . . . . . . . 4 1 . . . Energy Cannon . | . . . . . . . . . . . . . Ballistic Gun 9 | . 2 1 1 . . 1 . 4 . . . . Ballistic Cannon . | . . . . . . . . . . . . . Launcher . | . . . . . . . . . . . . . Special Weapon . | . . . . . . . . . . . . . Impact Weapon . | . . . . . . . . . . . . . Slashing Weapon 1 | . . . . 1 . . . . . . . . Piercing Weapon 1 | . . . . . . . . . . 1 . . Special Melee Weapon . | . . . . . . . . . . . . . Unidentified Prototypes . | . . . . . . . . . . . . . Parts Lost 1 | . . . . . . . . 1 . . . . Power . | . . . . . . . . . . . . . Propulsion . | . . . . . . . . . . . . . Utility . | . . . . . . . . . . . . . Weapon 1 | . . . . . . . . 1 . . . . Highest Loss Streak 1 | . . . . . . . . 1 . . . . To Critical Strikes . | . . . . . . . . . . . . . Average Backups 16 | . 8 9 10 11 14 12 12 19 19 20 20 18 Power . | . 1 1 1 1 1 1 . . . . . . Propulsion 2 | . 2 2 1 1 3 2 2 3 3 3 3 2 Utility 8 | . 4 4 5 7 8 6 7 7 8 10 10 9 Weapon 5 | . 1 2 1 1 2 2 3 8 8 7 7 7 Tool/Special . | . . . . . . . . . . . . . Unused Backups 25 | . 8 3 2 1 . 1 . . 1 . . 9 Power 1 | . 1 . . . . . . . . . . . Propulsion 5 | . 2 1 1 . . 1 . . . . . . Utility 13 | . 3 1 . 1 . . . . 1 . . 7 Weapon 6 | . 2 1 1 . . . . . . . . 2 Tool/Special . | . . . . . . . . . . . . . Average Slot Usage (%) 99 | . 99 97 100 97 90 94 93 98 100 99 100 99 Engine 3 | . 12 10 10 10 10 6 3 7 1 . . . Core 8 | . . . . . . 1 7 7 12 14 14 12 Leg 9 | . 25 27 30 29 30 28 . . . . . . Flight 23 | . . . . . . 3 32 35 35 34 35 37 Device 5 | . 3 3 . . . 6 7 7 7 7 7 11 Storage 7 | . 12 10 10 10 10 8 7 7 7 7 7 6 Processor 8 | . . 15 20 18 10 8 7 7 7 7 7 6 Protection 5 | . 8 . . . . 6 7 7 7 7 7 6 Energy Gun 11 | . 18 10 10 8 . . . 6 11 14 14 12 Ballistic Gun 11 | . 17 20 20 20 20 16 14 12 9 6 7 6 Peak Build Rating 64 | . 9 15 16 37 37 53 47 52 56 56 56 64 Average Rating 43 | . 8 12 15 19 37 43 45 49 54 55 56 63 On Entrance 33 | 7 7 9 15 16 37 37 43 47 52 56 56 56 Avg Prop Armor Cover (%) 7 | . . . . . . 11 . . 2 8 . . Naked Turns . | . . . . . . . . . . . . . Heaviest Build 72 | 22 23 22 22 53 53 61 62 69 71 71 71 72 Greatest Support 82 | 20 20 33 33 70 70 82 27 27 27 29 29 35 Greatest Overweight (x) 23 | 1 1 1 . 5 . 9 2 2 3 23 2 2 Average Overweight (x) 2 | 1 1 . . . . . 2 2 2 13 2 2 Largest Inventory Capacity 20 | . 10 10 10 20 20 20 20 20 20 20 20 20 Average Capacity 18 | . 10 10 10 18 20 20 20 20 20 20 20 20 Most Carried 20 | . 10 10 10 14 14 15 14 20 20 20 20 19 Average Carried 16 | . 8 9 9 11 14 12 12 19 19 20 20 18 Final Capacity 20 | 10 10 10 10 20 20 20 20 20 20 20 20 20 Final Carried 20 | 7 10 10 10 14 14 13 14 20 20 20 20 19 Class Distribution -------------------- 70% | Hacker-Tank 16% | Hacker-Gunner 9% | Hacker-Mutant 3% | Hacker-Skirmisher Dominant Class ---------------- Hacker-Tank | -10/Materials Hacker-Gunner | -9/Materials Hacker-Gunner | -9/Mines Hacker-Gunner | -9/Exiles Hacker-Mutant | -8/Mines Hacker-Mutant | -8/Materials Hacker-Mutant | -7/Factory Hacker-Tank | -7/Waste Hacker-Tank | -7/Factory Hacker-Tank | -7/Lower Caves Hacker-Tank | -7/Lower Caves Hacker-Tank | -6/Factory Resources | -11 -10 -9 -9 -9 -8 -8 -7 -7 -7 -7 -7 -6 ----------- Run | Yrd Mat Mat Min Exi Min Mat Fac Was Fac Low Low Fac Matter Collected 1105 | 200 70 99 168 106 . 104 88 90 74 106 . . Remotely . | . . . . . . . . . . . . . Salvage Created 884 | . 132 195 116 . . 96 . . 194 84 . 67 Parts 46 | . 7 12 11 . . 6 . . 7 3 . . Haulers Intercepted . | . . . . . . . . . . . . . Recyclers Shooed . | . . . . . . . . . . . . . Parts Field Recycled . | . . . . . . . . . . . . . Retrieved Matter . | . . . . . . . . . . . . . Parts Self-Destructed . | . . . . . . . . . . . . . Prevented . | . . . . . . . . . . . . . Parts Restored . | . . . . . . . . . . . . . Kills | -11 -10 -9 -9 -9 -8 -8 -7 -7 -7 -7 -7 -6 ------- Run | Yrd Mat Mat Min Exi Min Mat Fac Was Fac Low Low Fac Combat Hostiles Destroyed 20 | . 3 5 5 . . 2 . . 2 2 . 1 Guns 20 | . 3 5 5 . . 2 . . 2 2 . 1 Classes Destroyed 7 | . 1 3 1 . . . . . 1 1 . . Recycler 1 | . . . . . . . . . 1 . . . Watcher 2 | . . 2 . . . . . . . . . . Swarmer 7 | . . 3 3 . . . . . . 1 . . Grunt 7 | . 3 1 1 . . 1 . . 1 . . . Duelist 1 | . . . 1 . . . . . . . . . Sentry 3 | . . 1 . . . 1 . . 1 . . . Hunter 2 | . . . . . . . . . . 1 . 1 Best Kill Streak 4 | . 2 4 3 . . 1 . . 1 1 . 1 Combat Bots Only 4 | . 2 4 3 . . 1 . . 1 1 . 1 Max Kills in Single Turn 2 | . 1 1 2 . . 1 . . 1 1 . 1 Gunslinging 1 | . . . 1 . . . . . . . . . Exploded . | . . . . . . . . . . . . . Melee . | . . . . . . . . . . . . . Uniques/NPCs Destroyed . | . . . . . . . . . . . . . Combat | -11 -10 -9 -9 -9 -8 -8 -7 -7 -7 -7 -7 -6 -------- Run | Yrd Mat Mat Min Exi Min Mat Fac Was Fac Low Low Fac Hostile Shots Fired 153 | . 9 33 13 . . 11 . 1 24 39 . 23 Missed 44 | . 2 7 1 . . 5 . . 7 16 . 6 Hits 109 | . 7 26 12 . . 6 . 1 17 23 . 17 Melee 7 | . . . 6 . . . . 1 . . . . Projectile 102 | . 7 26 6 . . 6 . . 17 23 . 17 AOE 1 | . 1 . . . . . . . . . . . Critical Strikes 2 | . . . 1 . . . . 1 . . . . Damage Taken 1195 | . 89 183 152 . . 87 . 158 143 198 . 185 Core 157 | . . 46 26 . . 20 . 13 27 15 . 10 Absorbed by Shields . | . . . . . . . . . . . . . Ignored by Resistances 725 | . 53 121 91 . . 53 . 91 82 124 . 110 Regen/Repaired (Parts) 136 | . . . . . . . . 14 19 59 . 44 Core Remaining (%) 94 | 100 100 . . . 82 96 . . . . 92 . Volleys Fired 59 | . 5 15 10 . . 8 . 4 9 4 . 4 Largest 3 | . 3 3 3 . . 2 . 3 3 3 . 3 Hottest 190 | . 90 90 90 . . 40 . 146 190 190 . 190 Shots Fired 169 | . 15 45 30 . . 16 . 12 27 12 . 12 Gun 169 | . 15 45 30 . . 16 . 12 27 12 . 12 Cannon . | . . . . . . . . . . . . . Launcher . | . . . . . . . . . . . . . Special . | . . . . . . . . . . . . . Kinetic 101 | . 10 30 20 . . 16 . 8 9 4 . 4 Thermal 68 | . 5 15 10 . . . . 4 18 8 . 8 Explosive . | . . . . . . . . . . . . . Electromagnetic . | . . . . . . . . . . . . . Robot Hit Streak 21 | . 13 21 11 . . 9 . 16 20 8 . 3 Robot Miss Streak 2 | . . 1 1 . . 1 . . 1 2 . 1 Penetration Max . | . . . . . . . . . . . . . Secondary Targets 2 | . 1 . 1 . . . . . . . . . Max Gunslinging Chain 1 | . 1 . 1 . . . . . . . . . Shots Hit Robots 131 | . 13 32 24 . . 13 . 12 22 8 . 7 Core Hits 47 | . 7 11 8 . . 6 . 1 8 3 . 3 Critical Kills . | . . . . . . . . . . . . . Critical Parts Destroyed . | . . . . . . . . . . . . . Critical Strikes 5 | . 2 2 . . . . . . . . . 1 Burn 5 | . 2 2 . . . . . . . . . 1 Melee Attacks . | . . . . . . . . . . . . . Impact . | . . . . . . . . . . . . . Slashing . | . . . . . . . . . . . . . Piercing . | . . . . . . . . . . . . . Sneak Attacks . | . . . . . . . . . . . . . Combat Hostiles . | . . . . . . . . . . . . . Follow-up Attacks . | . . . . . . . . . . . . . Damage Inflicted 2048 | . 149 376 269 . . 128 . 243 553 179 . 151 Guns 2007 | . 149 376 269 . . 128 . 243 512 179 . 151 Cannons . | . . . . . . . . . . . . . Explosions . | . . . . . . . . . . . . . Melee . | . . . . . . . . . . . . . Ramming 41 | . . . . . . . . . 41 . . . Kinetic 914 | . 86 204 146 . . 128 . 140 160 16 . 34 Thermal 1093 | . 63 172 123 . . . . 103 352 163 . 117 Explosive . | . . . . . . . . . . . . . Electromagnetic . | . . . . . . . . . . . . . Impact . | . . . . . . . . . . . . . Slashing . | . . . . . . . . . . . . . Piercing . | . . . . . . . . . . . . . Highest Corruption 1 | . . . . . . . . . 1 1 1 . Average Corruption 1 | . . . . . . . . . 1 1 1 . Corruption Purged . | . . . . . . . . . . . . . Corruption Blocked . | . . . . . . . . . . . . . Effects 29 | . . . . . . . . . 1 28 . . Message Errors 9 | . . . . . . . . . . 9 . . Matter Fused 7 | . . . . . . . . . . 7 . . Heat Flow Errors 5 | . . . . . . . . . 1 4 . . Energy Discharges 2 | . . . . . . . . . . 2 . . Data Loss (minor) 3 | . . . . . . . . . . 3 . . Data Loss (major) 1 | . . . . . . . . . . 1 . . Misfires 2 | . . . . . . . . . . 2 . . Overload Shots . | . . . . . . . . . . . . . Overflow Damage 1 | . . . . . . . . . 1 . . . Projectiles . | . . . . . . . . . . . . . Explosions . | . . . . . . . . . . . . . Melee 1 | . . . . . . . . . 1 . . . Knockbacks 1 | . . . . . . . . . 1 . . . Impact 1 | . . . . . . . . . 1 . . . Kinetic . | . . . . . . . . . . . . . Secondary . | . . . . . . . . . . . . . Self-Inflicted Damage 19 | . . . . . . . . . 19 . . . Shots . | . . . . . . . . . . . . . Rammed 6 | . . . . . . . . . 6 . . . Targets Rammed 6 | . . . . . . . . . 6 . . . Kicked . | . . . . . . . . . . . . . Crushed . | . . . . . . . . . . . . . Highest Temperature 444 | . 210 159 163 . . . . 276 252 242 . 444 Average Temperature 103 | . 95 44 73 . . . . 141 118 88 . 221 Received Heat Transfer 315 | . 63 123 18 . . 36 . . 12 . . 63 Effects 2 | . . . . . . . . . 1 . . 1 Shutdowns 1 | . . . . . . . . . . . . 1 Interference 1 | . . . . . . . . . 1 . . . Siege Activations . | . . . . . . . . . . . . . Martial Activations . | . . . . . . . . . . . . . Shielding Activations . | . . . . . . . . . . . . . Robots Disrupted . | . . . . . . . . . . . . . Combat Hostiles . | . . . . . . . . . . . . . Robots Corrupted . | . . . . . . . . . . . . . Combat Hostiles . | . . . . . . . . . . . . . Parts Fried . | . . . . . . . . . . . . . Impact Corruptions 1 | . . . . . . . . . 1 . . . Robots Melted . | . . . . . . . . . . . . . Combat Hostiles . | . . . . . . . . . . . . . Parts Melted 4 | . . 1 . . . . . . . 2 . 1 Heat Transferred 2627 | . 333 666 370 . . . . 148 592 259 . 259 Parts Sabotaged . | . . . . . . . . . . . . . Parts Stolen . | . . . . . . . . . . . . . Parts Stripped . | . . . . . . . . . . . . . Power Chain Reactions . | . . . . . . . . . . . . . Alert | -11 -10 -9 -9 -9 -8 -8 -7 -7 -7 -7 -7 -6 ------- Run | Yrd Mat Mat Min Exi Min Mat Fac Was Fac Low Low Fac Maximum Alert Level . | . . . . . . . . . . . . . Low Security (%) 100 | . 100 100 100 . 100 100 100 100 100 . . 100 Level 1 . | . . . . . . . . . . . . . Level 2 . | . . . . . . . . . . . . . Level 3 . | . . . . . . . . . . . . . Level 4 . | . . . . . . . . . . . . . Level 5 . | . . . . . . . . . . . . . High Security . | . . . . . . . . . . . . . Max Security . | . . . . . . . . . . . . . Peak Influence 76 | . 50 76 70 . . 30 . 15 58 . . 30 Initial 12 | . . . 12 . . . . . . . . . Average 5 | . 3 15 9 . . 2 . . 8 . . 1 Influence Increases 806 | . 75 150 120 . . 53 . 36 241 101 . 30 Destroy 0b10 Robot/C 560 | . 60 100 100 . . 40 . . 160 80 . 20 Destroy 0b10 Robot/NC 25 | . . 10 . . . . . . 15 . . . Destroy Leader 124 | . 10 24 20 . . 10 . . 30 20 . 10 Allied During Kill 25 | . . . . . . . . . 24 1 . . Successful Hack 8 | . 5 . . . . 3 . . . . . . Destroy Structure 49 | . . 1 . . . . . 36 12 . . . Lose Combat Pursuer 15 | . . 15 . . . . . . . . . . Influence Decreases 806 | . 75 104 166 . . 53 . 36 241 86 15 30 Entered New Map 40 | . . . 34 . . . . . . . 6 . Time Decay 737 | . 75 104 132 . . 53 . 36 212 86 9 30 Lost Ally 29 | . . . . . . . . . 29 . . . Squads Dispatched 4 | . . 1 . . . 1 1 . 1 . . . Investigation . | . . . . . . . . . . . . . Extermination 1 | . . . . . . . . . 1 . . . Reinforcement 3 | . . 1 . . . 1 1 . . . . . Assault . | . . . . . . . . . . . . . Garrison . | . . . . . . . . . . . . . Intercept . | . . . . . . . . . . . . . Searches Triggered . | . . . . . . . . . . . . . Construction Impeded . | . . . . . . . . . . . . . Haulers Reinforced . | . . . . . . . . . . . . . Active Scanning Responses . | . . . . . . . . . . . . . Cargo Convoy Interrupts . | . . . . . . . . . . . . . Stealth | -11 -10 -9 -9 -9 -8 -8 -7 -7 -7 -7 -7 -6 --------- Run | Yrd Mat Mat Min Exi Min Mat Fac Was Fac Low Low Fac Distress Signals 2 | . 2 . . . . . . . . . . . Communications Jammed . | . . . . . . . . . . . . . Distress Signals . | . . . . . . . . . . . . . Times Spotted 56 | . 6 11 5 . . 6 1 5 12 4 . 6 Peak Tracking Total 4 | . 4 4 3 . . 2 1 3 3 3 . 3 Tactical Retreats 1 | . . 1 . . . . . . . . . . Traps | -11 -10 -9 -9 -9 -8 -8 -7 -7 -7 -7 -7 -6 ------- Run | Yrd Mat Mat Min Exi Min Mat Fac Was Fac Low Low Fac Traps Triggered 4 | . . . . . . 1 1 . 1 . . 1 Indirectly . | . . . . . . . . . . . . . Trap Hack Attempts . | . . . . . . . . . . . . . Triggered . | . . . . . . . . . . . . . Disarmed . | . . . . . . . . . . . . . Reprogrammed . | . . . . . . . . . . . . . Reused . | . . . . . . . . . . . . . Traps Extracted . | . . . . . . . . . . . . . Installed . | . . . . . . . . . . . . . Triggered . | . . . . . . . . . . . . . Machines | -11 -10 -9 -9 -9 -8 -8 -7 -7 -7 -7 -7 -6 ---------- Run | Yrd Mat Mat Min Exi Min Mat Fac Was Fac Low Low Fac Machines Disabled . | . . . . . . . . . . . . . Max in Single Turn . | . . . . . . . . . . . . . Machines Repaired . | . . . . . . . . . . . . . Machines Dismantled . | . . . . . . . . . . . . . Machines Sabotaged . | . . . . . . . . . . . . . Overloaded Fab Kills . | . . . . . . . . . . . . . Hacking | -11 -10 -9 -9 -9 -8 -8 -7 -7 -7 -7 -7 -6 --------- Run | Yrd Mat Mat Min Exi Min Mat Fac Was Fac Low Low Fac Machines Accessed 12 | . 5 2 . 1 . 3 . . 1 . . . Terminals 11 | . 5 2 . . . 3 . . 1 . . . Fabricators . | . . . . . . . . . . . . . Repair Stations . | . . . . . . . . . . . . . Recycling Units . | . . . . . . . . . . . . . Scanalyzers . | . . . . . . . . . . . . . Garrison Access . | . . . . . . . . . . . . . Total Hacks 28 | . 11 5 . 1 . 9 . . 2 . . . Successful 22 | . 9 4 . 1 . 7 . . 1 . . . Failed 6 | . 2 1 . . . 2 . . 1 . . . Catastrophic . | . . . . . . . . . . . . . Database Lockouts . | . . . . . . . . . . . . . Manual 28 | . 12 5 . 1 . 8 . . 2 . . . Terminals 27 | . 11 5 . . . 9 . . 2 . . . Fabricators . | . . . . . . . . . . . . . Repair Stations . | . . . . . . . . . . . . . Recycling Units . | . . . . . . . . . . . . . Scanalyzers . | . . . . . . . . . . . . . Garrison Access . | . . . . . . . . . . . . . Terminal Hacks 3 | . 1 . . 1 . 1 . . . . . . Part Schematic 1 | . 1 . . . . . . . . . . . Robot Analysis 1 | . . . . . . 1 . . . . . . Proto ID Catalog 1 | . . . . 1 . . . . . . . . Fabricator Hacks . | . . . . . . . . . . . . . Repair Station Hacks . | . . . . . . . . . . . . . Recycling Unit Hacks . | . . . . . . . . . . . . . Scanalyzer . | . . . . . . . . . . . . . Garrison Access Hacks . | . . . . . . . . . . . . . Unauthorized Hacks 19 | . 8 4 . . . 6 . . 1 . . . Terminals 19 | . 8 4 . . . 6 . . 1 . . . Botnet 9 | . 3 2 . . . 3 . . 1 . . . Skim 10 | . 5 2 . . . 3 . . . . . . Fabricators . | . . . . . . . . . . . . . Repair Stations . | . . . . . . . . . . . . . Recycling Units . | . . . . . . . . . . . . . Scanalyzers . | . . . . . . . . . . . . . Garrison Access . | . . . . . . . . . . . . . Data Cores Recovered . | . . . . . . . . . . . . . Used . | . . . . . . . . . . . . . Hacking Detections 7 | . 3 . . . . 3 . . 1 . . . Full Trace Events 1 | . 1 . . . . . . . . . . . Feedback Events . | . . . . . . . . . . . . . Feedback Blocked . | . . . . . . . . . . . . . Robot Schematics Acquired . | . . . . . . . . . . . . . Robots Built . | . . . . . . . . . . . . . Authchips . | . . . . . . . . . . . . . Time . | . . . . . . . . . . . . . Total Robot Build Rating . | . . . . . . . . . . . . . Part Schematics Acquired 1 | . 1 . . . . . . . . . . . Parts Built . | . . . . . . . . . . . . . Authchips . | . . . . . . . . . . . . . Time . | . . . . . . . . . . . . . Total Part Build Rating . | . . . . . . . . . . . . . Part Studies Acquired . | . . . . . . . . . . . . . Parts Repaired . | . . . . . . . . . . . . . Time . | . . . . . . . . . . . . . Parts Recycled . | . . . . . . . . . . . . . Recycled Matter . | . . . . . . . . . . . . . Retrieved Matter . | . . . . . . . . . . . . . Retrieved Components . | . . . . . . . . . . . . . Parts Scanalyzed . | . . . . . . . . . . . . . Part Schematics Acquired . | . . . . . . . . . . . . . Parts Damaged . | . . . . . . . . . . . . . Bothacking | -11 -10 -9 -9 -9 -8 -8 -7 -7 -7 -7 -7 -6 ------------ Run | Yrd Mat Mat Min Exi Min Mat Fac Was Fac Low Low Fac Used RIF Installer . | . . . . . . . . . . . . . Robots Hacked . | . . . . . . . . . . . . . Non-combat . | . . . . . . . . . . . . . Combat . | . . . . . . . . . . . . . Robot Hacks Applied . | . . . . . . . . . . . . . Relay Couplers Released . | . . . . . . . . . . . . . Fabnet Peak Effective % . | . . . . . . . . . . . . . Robots Rewired . | . . . . . . . . . . . . . Allies Hacked . | . . . . . . . . . . . . . Hacks Repelled . | . . . . . . . . . . . . . Allies | -11 -10 -9 -9 -9 -8 -8 -7 -7 -7 -7 -7 -6 -------- Run | Yrd Mat Mat Min Exi Min Mat Fac Was Fac Low Low Fac Total Allies 18 | . . . . . . . . 18 . . . . Largest Group 18 | . . . . . . . . 18 11 2 1 1 Highest-Rated Group 434 | . . . . . . . . 434 314 57 26 26 Highest-Rated Ally 35 | . . . . . . . . 35 35 31 26 26 Total Orders . | . . . . . . . . . . . . . Ally Attacks 226 | . . . . . . . . 159 47 20 . . Total Damage 5438 | . . . . . . . . 4476 704 258 . . Kills 23 | . . . . . . . . 13 8 2 . . Allies Corrupted . | . . . . . . . . . . . . . Allies Melted . | . . . . . . . . . . . . . Intel | -11 -10 -9 -9 -9 -8 -8 -7 -7 -7 -7 -7 -6 ------- Run | Yrd Mat Mat Min Exi Min Mat Fac Was Fac Low Low Fac Active Infowar (turns) 729 | . 202 125 . . . . . . . . . 402 Terrain 327 | . 202 125 . . . . . . . . . . Jamming 402 | . . . . . . . . . . . . 402 Robot Analysis Total 1 | . . . . . . 1 . . . . . . Derelict Logs Recovered 2 | . . . 2 . . . . . . . . . Drone Launches . | . . . . . . . . . . . . . Drone Recoveries . | . . . . . . . . . . . . . Exploration | -11 -10 -9 -9 -9 -8 -8 -7 -7 -7 -7 -7 -6 ------------- Run | Yrd Mat Mat Min Exi Min Mat Fac Was Fac Low Low Fac Turns Passed 9016 | . 638 324 562 919 32 420 131 632 870 3939 146 403 Spaces Moved 3316 | 1 301 187 426 575 33 276 72 354 459 358 79 195 Core 1 | . . . . . . . . . . 1 . . Treads . | . . . . . . . . . . . . . Legs 1780 | 1 301 187 426 575 33 257 . . . . . . Wheels . | . . . . . . . . . . . . . Hover . | . . . . . . . . . . . . . Flight 1535 | . . . . . . 19 72 354 459 357 79 195 Fastest Speed 97 | 190 190 120 120 100 100 97 171 171 171 171 187 184 Average Speed 257 | 190 190 135 120 157 100 108 177 171 173 1094 187 184 Slowest Speed 1200 | 190 190 190 120 470 100 790 191 171 239 1200 187 184 Overloaded Moves . | . . . . . . . . . . . . . Propulsion Burnouts . | . . . . . . . . . . . . . Robots Hopped . | . . . . . . . . . . . . . Potential Cave-ins . | . . . . . . . . . . . . . Cave-ins Triggered . | . . . . . . . . . . . . . Exploration Rate (%) 39 | 2 66 21 95 92 11 32 3 97 17 62 10 7 Regions Visited 12 Branch Regions 5 Pre-discovered Areas . | . . . . . . . . . . . . . Known Exits Taken 10 | 1 1 1 1 1 1 1 . . 1 1 1 . Unknown Exits Taken . | . . . . . . . . . . . . . Scrap Searched 3 | . . . 1 . . . . . . 2 . . Spaces Dug . | . . . . . . . . . . . . . Terrain Destroyed . | . . . . . . . . . . . . . Melee . | . . . . . . . . . . . . . Projectile . | . . . . . . . . . . . . . AOE . | . . . . . . . . . . . . . Terrain Rammed . | . . . . . . . . . . . . . Walls Destroyed . | . . . . . . . . . . . . . Machines Disabled . | . . . . . . . . . . . . . Actions | -11 -10 -9 -9 -9 -8 -8 -7 -7 -7 -7 -7 -6 --------- Run | Yrd Mat Mat Min Exi Min Mat Fac Was Fac Low Low Fac Total 3685 | . 359 228 459 592 32 380 76 373 510 369 78 229 Wait 175 | . 39 10 9 . . 81 . . 24 . . 12 Move 3305 | . 300 186 425 574 32 275 72 353 458 357 78 195 Hop . | . . . . . . . . . . . . . Pick Up 24 | . 6 5 3 3 . . 2 2 3 . . . Fast Attach 15 | . . 1 1 3 . 3 1 2 . 4 . . Attach 9 | . 2 1 . 1 . 2 1 . . . . 2 Detach 11 | . 1 . . 5 . 2 . 3 . . . . Swap 29 | . 3 4 4 2 . 5 . 6 4 . . 1 Drop 35 | . 3 6 7 2 . 4 . 3 6 4 . . Fire 59 | . 5 15 10 . . 8 . 4 9 4 . 4 Melee . | . . . . . . . . . . . . . Ram 6 | . . . . . . . . . 6 . . . Kick . | . . . . . . . . . . . . . Crush . | . . . . . . . . . . . . . Escape Stasis 15 | . . . . . . . . . . . . 15 Rewire 2 | . . . . 2 . . . . . . . . Trap . | . . . . . . . . . . . . . Miscellaneous . | . . . . . . . . . . . . . Route ------- -11/Scrapyard -10/Materials (discovered 4 exits: *Mat x2 / *Min / *Sub) -9/Materials -9/Mines (discovered 3 exits: *Mat x2 / *Exi) -9/Exiles -8/Mines -8/Materials (discovered 2 exits: *Fac x2) -7/Factory -7/Waste -7/Factory -7/Lower Caves -7/Lower Caves -6/Factory History --------- Turn | Location | Event 1 | -11/Scrapyard | Identified exit to Materials 1 | -11/Scrapyard | Discovered exit to Materials (range 0) 1 | -11/Scrapyard | Entered Materials 1 | -10/Materials | Evolved 1 slot: Weapon x1 161 | -10/Materials | Identified exit to Mines 161 | -10/Materials | Discovered exit to Mines (range 13) 330 | -10/Materials | Identified exit to Materials 330 | -10/Materials | Discovered exit to Materials (range 15) 510 | -10/Materials | Identified exit to Subcaves 510 | -10/Materials | Discovered exit to Subcaves (range 7) 591 | -10/Materials | Build established: Hacker-Tank 601 | -10/Materials | Discovered exit to Materials (range 10) 639 | -10/Materials | Entered another Materials area 639 | -9/Materials | Evolved 2 slots: Propulsion x1, Utility x1 846 | -9/Materials | Identified exit to Mines 846 | -9/Materials | Discovered exit to Mines (range 13) 963 | -9/Materials | Entered Mines 985 | -9/Mines | Met a Derelict bent on vengeance 1064 | -9/Mines | Build established: Hacker-Gunner 1088 | -9/Mines | Identified exit to Materials 1088 | -9/Mines | Discovered exit to Materials (range 9) 1135 | -9/Mines | Learned Materials emergency access door positions 1237 | -9/Mines | Discovered exit to Materials (range 12) 1313 | -9/Mines | Found a damaged Exp. Sensor Array with a note attached 1319 | -9/Mines | Found Prototype Device 1519 | -9/Mines | Deemed a non-threat by the Exiles lab entrance 1520 | -9/Mines | Identified exit to Exiles 1520 | -9/Mines | Discovered exit to Exiles (range 5) 1525 | -9/Mines | Entered Exiles 1559 | -9/Exiles | Met 8R-AWN 1579 | -9/Exiles | Met EX-HEX 1698 | -9/Exiles | Met EX-DEC 1745 | -9/Exiles | Visited The Gauntlet 2107 | -9/Exiles | Met EX-BIN 2145 | -9/Exiles | Aligned with FarCom system 2147 | -9/Exiles | Given EX-Vault access code 2268 | -9/Exiles | Opened EX-Vault 2278 | -9/Exiles | Found Prototype Device 2286 | -9/Exiles | Identified Chronowheel 2291 | -9/Exiles | Activated Chronowheel 2297 | -9/Exiles | Found Potential Leg 2301 | -9/Exiles | Found Potential Leg 2306 | -9/Exiles | Found Longsword +1 2331 | -9/Exiles | Warned to stay clear of 0b10 Research branches 2411 | -9/Exiles | Identified exit to Mines 2411 | -9/Exiles | Discovered exit to Mines (range 10) 2444 | -9/Exiles | Stole two prototypes: Potential Leg, Longsword +1 2444 | -9/Exiles | Entered Mines 2470 | -8/Mines | Discovered exit to Materials (range 8) 2476 | -8/Mines | Entered Materials 2476 | -8/Materials | Evolved 2 slots: Propulsion x1, Utility x1 2477 | -8/Materials | Identified exit to Factory 2590 | -8/Materials | Build established: Hacker-Mutant 2801 | -8/Materials | Discovered exit to Factory (range 12) 2896 | -8/Materials | Entered Factory 2896 | -7/Factory | Evolved 2 slots: Power x1, Propulsion x1 2898 | -7/Factory | FarCom data flow suspended 3027 | -7/Factory | Sucked down chute 3027 | -7/Factory | Entered Waste 3041 | -7/Waste | Spotted C-40 Crusher 3069 | -7/Waste | Crushed by Compactor (1 part destroyed, 2 dropped) 3077 | -7/Waste | Warlord forces began an assault 3081 | -7/Waste | Allies destroyed C-40 Crusher 3266 | -7/Waste | Spotted C-40 Crusher 3268 | -7/Waste | Allies destroyed C-40 Crusher 3301 | -7/Waste | Spotted C-40 Crusher 3307 | -7/Waste | Spotted C-40 Crusher 3310 | -7/Waste | Spotted C-40 Crusher 3313 | -7/Waste | Allies destroyed C-40 Crusher 3320 | -7/Waste | Allies destroyed C-40 Crusher 3322 | -7/Waste | Spotted C-40 Crusher 3330 | -7/Waste | Allies destroyed C-40 Crusher 3356 | -7/Waste | Lost 7 allies 3420 | -7/Waste | Build established: Hacker-Tank 3563 | -7/Waste | Identified exit to Factory 3563 | -7/Waste | Discovered exit to Factory (range 11) 3659 | -7/Waste | Entered Factory 3659 | -7/Factory | Accompanied by 11 allies 3985 | -7/Factory | Lost 5 allies 4383 | -7/Factory | Lost 4 allies 4496 | -7/Factory | Identified exit to Lower Caves 4496 | -7/Factory | Discovered exit to Lower Caves (range 15) 4529 | -7/Factory | Entered Lower Caves 4529 | -7/Lower Caves | Accompanied by 2 allies 8458 | -7/Lower Caves | Identified exit to Lower Caves 8458 | -7/Lower Caves | Discovered exit to Lower Caves (range 5) 8468 | -7/Lower Caves | Entered another Lower Caves area 8468 | -7/Lower Caves | Accompanied by 1 ally 8599 | -7/Lower Caves | Identified exit to Factory 8599 | -7/Lower Caves | Discovered exit to Factory (range 8) 8614 | -7/Lower Caves | Entered Factory 8614 | -6/Factory | Accompanied by 1 ally 8614 | -6/Factory | Evolved 2 slots: Propulsion x1, Utility x1 9017 | -6/Factory | Self-destructed Last Messages --------------- 08800_ Field strength at 34. 08801_ Field strength at 28. 08801_ CN-UDX(m) repairs Imp. Light Armor Plating. 08802_ Field strength at 22. 08803_ Field strength at 16. 08804_ Field strength at 10. 08805_ Field strength at 4. 08806_ Stasis field depleted. 08808_ K-01 Serf cleans the Fusion Modulator. 08814_ U-05 Engineer lays Concrete. 08819_ K-01 Serf cleans the Fusion Modulator. 08847_ Fabricator completes Imp. Force Field. 08860_ K-01 Serf cleans the Fusion Modulator. 08971_ K-01 Serf cleans the Pressure Siphon. 08974_ K-01 Serf cleans the Construction Platform. 09002_ CN-UDX(m) repairs Nuclear Core. 09003_ K-01 Serf cleans the Construction Platform. 09008_ K-01 Serf cleans the Pressure Siphon. 09012_ Pressure Siphon disabled. 09015_ P-60 Hacker fails to hack CN-UDX(m). Map ----- +----------------------------------------------------+ | ?????????????????????????????????????????????????? | | ?????????????????????????????????????????????????? | | ?????????????????????????????????????????????????? | | ?????????????????????????????????????????????????? | | ?????????????????????????????????????????????????? | | ?????????????????????????????????????????????????? | | ?????????????????????????????????????????????????? | | ?????????????????????????????????????????????????? | | ?????????????????????????????????????????????????? | | ?????????????????????????????????????????????????? | | ?????????????????????????????????????????????????? | | ????????????????##########???????????????????????? | | ????????????????? ]#???????????????????????? | | ???????????????"""""" #???????????????????????? | | ???????????????"""""" #???????????????????????? | | ??????????????""""""" #???????????????????????? | | ????????????# """"""" #######+#???????????????? | | ????????????# / +??????????? | | ""??????????# """"""" ####### #???????????????? | | ""#?????????# """"""" #???????????????????????? | | ""#?????????# """"""" #???????????????????????? | | ""#?????????# """"""" #???????????????????????? | | ""#?????????# #???????????????????????? | | ???????????# #???????????????????????? | | ###################/############ #???????????????? | | gg @ k#???????????????? | | k kpm +???????????????? | | k ""% **! #???????????????? | | """ *! #???????????????? | | u """ *! #???????????????? | | ############+##### """ #???????????????? | | ?????????? ??# #???????????????? | | ???????? ? # """ """ """ ??????????????? | | ???????? ??? # """ """ """ ?????????????? | | ???????? ???? # """ """ """ ????????????? | | ??????? ?????# """ """ ""?? ????????????? | | ?????? ! ??????# ???k ????? ????????????? | | ?????# ??????# """ ??? "????? ??????????????? | | ??????####???????? """ ????"????????????????????? | | ?????????????????? "?? ?????????????????????????? | | ?????????????????? "?? ?????????????????????????? | | ?????????????????? ?????????????????????????????? | | ?????????????????????????????????????????????????? | | ?????????????????????????????????????????????????? | | ?????????????????????????????????????????????????? | | ?????????????????????????????????????????????????? | | ?????????????????????????????????????????????????? | | ?????????????????????????????????????????????????? | | ?????????????????????????????????????????????????? | | ?????????????????????????????????????????????????? | +----------------------------------------------------+ Best States ------------- Heat Dissipation 51 Energy Generation 24 Energy Capacity 300 Matter Stores 300 Matter Capacity 300 Sight Range 16 Terrain Scan Range 14 Terrain Scan Density 10 Jamming Range 12 Armor Coverage 225 Resistance: KI 35 Resistance: TH 35 Resistance: EX 35 Resistance: EM 35 Resistance: I 35 Resistance: S 35 Resistance: P 35 Evasion (%) 55 Targeting Accuracy 8 Offensive Hacking 20 Item Schematics ----------------- Hcp. Storage Unit | -10/Materials | Hacked Robot Schematics ------------------ None Fabricated ------------ Nothing Repaired ---------- Nothing Studied --------- None Alien Tech Used ----------------- None Achievements -------------- None Challenges ------------ None Game ------ Seed SixInsulatedEngine Manual? 0 Play Time 00:38:01 Cumulative 36.0 hours Start 2026.08.16 @ 15:46:27 End 2026.08.16 @ 16:25:21 Sessions 1 Manual Loads 0 Difficulty Explorer Special Mode None Game No. 37 Rogue 5 Adventurer 0 Explorer 32 Win Type - Total 0 Types 0/0/0/0/0/0/0/0/0/0 Lore% 21 Gallery% 37 Achievement% 23 Wizard Run 0 Options --------- Layout 0 ASCII 0 Keyboard 1 Movement Vi Keybinds 0 Fullscreen 2 Font 24/X11 Map View 76x50 Zoom Use 0% Tactical HUD 1 Map Filters NONE Filters NONE Steam 1 RUN: 0e4ffa5d-d430-4aa9-9607-ea29d121d047